Cogmind - Beta 15 @@@ ROGUE MODE // 2025.05.13 @ 15:53:12 Player: Henry Result: Destroyed by Y-64 Sentinel with Wave Gun Performance ------------- Evolutions (6) 3000 Regions Visited (10) 2000 Robots Destroyed (38) 190 Value Destroyed (877) 877 Prototype IDs (2) 40 Alien Tech Used (0) 0 Bonus (0) 0 TOTAL SCORE: 6107 Bonus ------- None Cogmind --------- Core Integrity 0/1150 Matter 290/300 Energy 89/100 System Corruption 0% Temperature Cool (9) Movement Core (100) Ox1 Location -4/Factory Parts ------- > --- POWER (1) -------- (None) > --- PROPULSION (5) --- (None) > --- UTILITY (11) ----- Advanced Signal Interpreter Improved Weapon Shielding Experimental System Shield > --- WEAPON (2) ------- Axe > --- INVENTORY (5) ---- Advanced Terrain Scan Processor Heavy Missile Launcher Peak State ------------ > --- POWER ------------ Light Nuclear Core > --- PROPULSION ------- Wheel Improved Hover Unit Gravmag System Gyrokinetic Inverter > --- UTILITY ---------- Medium Storage Unit Trap Scanner Advanced Signal Interpreter Improved Terrain Scanner Advanced Terrain Scan Processor Melee Analysis Suite Advanced ECM Suite Improved Weapon Shielding Improved Light Armor Plating Hacking Suite > --- WEAPON ----------- Katana Heavy Pick > --- INVENTORY -------- Light Ion Engine Wheel Wheel Wheel Advanced Terrain Scan Processor Improved Weapon Shielding Heavy Missile Launcher Axe [Rating: 57] Favorites ----------- Power Micro Nuclear Core Engine Ion Engine Power Core Micro Nuclear Core Propulsion Wheel Treads Advanced Treads Wheel Wheel Hover Unit Gravmag System Utility Medium Storage Unit Device Improved Terrain Scanner Storage Medium Storage Unit Processor Advanced Terrain Scan Processor Hackware Hacking Suite Protection Hardened Medium Armor Plating Weapon Katana Energy Gun Small Laser Launcher Rocket Array Slashing Weapon Katana Piercing Weapon Heavy Pick Build | -11 -10 -9 -9 -9 -8 -8 -7 -6 -5 -4 ------- Run | Yrd Mat Mat Min Exi Min Mat Fac Fac Fac Fac Slots Evolved 12 | . . 2 . . . 2 2 2 2 2 Power . | . . . . . . . . . . . Propulsion 3 | . . 2 . . . . . . . 1 Utility 9 | . . . . . . 2 2 2 2 1 Weapon . | . . . . . . . . . . . Parts Attached 60 | 7 . 6 . . 3 6 8 6 16 8 Power 7 | 1 . 1 . . 1 . 2 1 1 . Engine 4 | 1 . 1 . . 1 . . . 1 . Core 3 | . . . . . . . 2 1 . . Reactor . | . . . . . . . . . . . Propulsion 24 | 2 . 4 . . . . 3 2 9 4 Treads 1 | . . . . . . . 1 . . . Leg . | . . . . . . . . . . . Wheel 19 | 2 . 4 . . . . 2 2 5 4 Hover 4 | . . . . . . . . . 4 . Flight . | . . . . . . . . . . . Utility 22 | 2 . 1 . . . 5 3 3 5 3 Device 9 | 1 . 1 . . . 3 . 2 1 1 Storage 2 | 1 . . . . . 1 . . . . Processor 4 | . . . . . . . 2 . 2 . Hackware 2 | . . . . . . 1 . . . 1 Protection 5 | . . . . . . . 1 1 2 1 Artifact . | . . . . . . . . . . . Weapon 7 | 2 . . . . 2 1 . . 1 1 Energy Gun 2 | 2 . . . . . . . . . . Energy Cannon . | . . . . . . . . . . . Ballistic Gun . | . . . . . . . . . . . Ballistic Cannon . | . . . . . . . . . . . Launcher 2 | . . . . . 1 1 . . . . Special Weapon . | . . . . . . . . . . . Impact Weapon . | . . . . . . . . . . . Slashing Weapon 2 | . . . . . 1 . . . . 1 Piercing Weapon 1 | . . . . . . . . . 1 . Special Melee Weapon . | . . . . . . . . . . . Unidentified Prototypes 2 | . . . . . . 1 . . . 1 Parts Lost 43 | . 1 2 . . . . 3 6 17 14 Power 3 | . . . . . . . . . 3 . Propulsion 22 | . 1 1 . . . . 3 2 9 6 Utility 15 | . . 1 . . . . . 3 4 7 Weapon 3 | . . . . . . . . 1 1 1 Highest Loss Streak 10 | . 1 1 . . . . 1 5 10 9 To Critical Strikes . | . . . . . . . . . . . Average Backups 7 | 2 7 5 5 5 6 8 8 9 8 3 Power 1 | . 1 1 2 2 2 2 1 1 . . Propulsion 1 | . 4 2 1 1 1 1 2 . 3 . Utility 2 | . . . . . . 2 3 6 1 1 Weapon 1 | . 2 2 2 2 2 2 1 1 2 1 Tool/Special . | . . . . . . . . . . . Unused Backups 6 | . 1 . . . . 1 1 1 . 2 Power 1 | . . . . . . . 1 . . . Propulsion . | . . . . . . . . . . . Utility 2 | . . . . . . . . 1 . 1 Weapon 3 | . 1 . . . . 1 . . . 1 Tool/Special . | . . . . . . . . . . . Average Slot Usage (%) 90 | . 98 98 100 100 94 89 95 96 88 58 Engine 4 | . 14 11 11 11 11 9 3 . . . Core 2 | . . . . . . . 3 6 4 . Treads 1 | . . . . . . . 5 . . . Wheel 26 | . 26 42 44 44 44 36 21 24 18 9 Device 14 | . 14 11 11 11 11 18 15 18 15 7 Storage 7 | . 14 11 11 11 11 9 7 6 5 4 Processor 6 | . . . . . . . 6 6 12 15 Hackware 4 | . . . . . . 7 7 6 5 4 Protection 6 | . . . . . . . 7 12 10 9 Energy Gun 6 | . 28 22 22 22 11 . . . . . Launcher 2 | . . . . . . . 6 5 . . Slashing Weapon 4 | . . . . . 5 9 7 6 4 . Peak Build Rating 57 | 9 9 11 9 9 11 23 38 47 57 42 Average Rating 28 | 5 8 9 9 9 9 19 33 44 44 36 On Entrance 15 | . 9 8 9 9 9 11 21 35 29 31 Naked Turns . | . . . . . . . . . . . Heaviest Build 43 | 13 13 13 13 13 15 18 36 43 36 21 Greatest Support 62 | 26 26 46 40 40 40 40 40 46 40 62 Greatest Overweight (x) 6 | . . . . . . . 1 1 3 6 Average Overweight (x) . | . . . . . . . . . . . Largest Inventory Capacity 10 | 8 8 8 8 8 8 10 10 10 10 10 Average Capacity 9 | 7 8 8 8 8 8 9 10 10 10 9 Most Carried 10 | 6 8 7 5 5 8 10 10 10 10 4 Average Carried 7 | 2 7 5 5 5 6 8 8 9 8 3 Final Capacity 10 | 8 8 8 8 8 8 10 10 10 10 5 Final Carried 10 | 6 8 5 5 5 8 10 10 9 4 2 Class Distribution -------------------- 40% | Scavenger-Mutant 40% | Mutant 10% | Scavenger-Assassin 6% | Scavenger-Gladiator Dominant Class ---------------- Mutant | -10/Materials Mutant | -9/Materials Scavenger-Mutant | -9/Mines Scavenger-Mutant | -9/Exiles Scavenger-Mutant | -8/Mines Scavenger-Mutant | -8/Materials Mutant | -7/Factory Scavenger-Mutant | -6/Factory Scavenger-Assassin | -5/Factory Mutant | -4/Factory Resources | -11 -10 -9 -9 -9 -8 -8 -7 -6 -5 -4 ----------- Run | Yrd Mat Mat Min Exi Min Mat Fac Fac Fac Fac Matter Collected 722 | 194 76 45 10 . 70 29 146 35 90 27 Remotely . | . . . . . . . . . . . Salvage Created 1136 | 136 71 127 . . 35 29 249 122 172 195 Parts 104 | 20 3 9 . . 10 2 27 11 14 8 Haulers Intercepted . | . . . . . . . . . . . Recyclers Shooed 1 | . . . . . 1 . . . . . Parts Field Recycled . | . . . . . . . . . . . Retrieved Matter . | . . . . . . . . . . . Parts Self-Destructed . | . . . . . . . . . . . Prevented . | . . . . . . . . . . . Kills | -11 -10 -9 -9 -9 -8 -8 -7 -6 -5 -4 ------- Run | Yrd Mat Mat Min Exi Min Mat Fac Fac Fac Fac Combat Hostiles Destroyed 20 | . 2 3 . . 4 . 7 2 2 . Melee 8 | . . . . . . . 4 2 2 . Guns 5 | . 2 3 . . . . . . . . AOE 7 | . . . . . 4 . 3 . . . Classes Destroyed 9 | 2 1 1 . . 1 1 1 . 1 1 Worker 1 | . . . . . . . . . . 1 Builder 5 | . . . . . . 1 . 1 2 1 Tunneler 9 | 5 . . . . 1 . 2 . 1 . Recycler 2 | 1 . . . . . . . . . 1 Watcher 1 | . . . . . . . . . 1 . Swarmer 8 | . . . . . 4 . 4 . . . Grunt 7 | . 2 2 . . . . 2 . 1 . Sentry 2 | . . 1 . . . . . 1 . . Programmer 3 | . . . . . . . 1 1 1 . Best Kill Streak 6 | 6 1 2 . . 4 1 3 3 2 2 Combat Bots Only 4 | . 1 2 . . 4 . 3 2 1 . Max Kills in Single Turn 3 | 1 1 1 . . 2 1 3 1 1 1 Gunslinging . | . . . . . . . . . . . Exploded 3 | . . . . . 2 . 3 . . . Melee 1 | . . . . . . . 1 1 1 . Uniques/NPCs Destroyed . | . . . . . . . . . . . Combat | -11 -10 -9 -9 -9 -8 -8 -7 -6 -5 -4 -------- Run | Yrd Mat Mat Min Exi Min Mat Fac Fac Fac Fac Hostile Shots Fired 376 | . 26 24 1 . 8 2 27 82 92 114 Missed 135 | . 10 6 1 . 6 1 7 31 38 35 Hits 241 | . 16 18 . . 2 1 20 51 54 79 Projectile 241 | . 16 18 . . 2 1 20 51 54 79 AOE 8 | . . . . . . . . 1 6 1 Critical Strikes 10 | . . . . . . . . . 2 8 Actively Blocked 2 | . . . . . . . . . 1 1 Damage Taken 4536 | . 165 201 . . 14 14 310 599 1359 1874 Core 1730 | . 47 44 . . . . 17 72 384 1166 Absorbed by Shields . | . . . . . . . . . . . Redirected to Shielding 157 | . . . . . . . . . 54 103 Core Remaining (%) 88 | 100 81 . . . 89 100 97 91 61 . Volleys Fired 50 | 10 19 17 . . 3 . 1 . . . Largest 2 | 2 2 2 . . 1 . 1 . . . Hottest 80 | 80 80 80 . . 30 . 45 . . . Shots Fired 96 | 20 38 34 . . 3 . 1 . . . Gun 92 | 20 38 34 . . . . . . . . Cannon . | . . . . . . . . . . . Launcher 4 | . . . . . 3 . 1 . . . Special . | . . . . . . . . . . . Kinetic . | . . . . . . . . . . . Thermal 92 | 20 38 34 . . . . . . . . Explosive 4 | . . . . . 3 . 1 . . . Electromagnetic . | . . . . . . . . . . . Robot Hit Streak 9 | 9 5 7 . . 3 . . . . . Robot Miss Streak 7 | 2 5 2 . . 1 . 7 . . . Penetration Max . | . . . . . . . . . . . Secondary Targets . | . . . . . . . . . . . Shots Hit Robots 103 | 13 21 22 . . 4 1 11 13 12 6 Core Hits 48 | 7 5 8 . . 4 . 10 4 7 3 Critical Kills . | . . . . . . . . . . . Critical Parts Destroyed . | . . . . . . . . . . . Critical Strikes 7 | . . . . . . . 2 1 3 1 Sever 5 | . . . . . . . 2 1 2 . Impale 2 | . . . . . . . . . 1 1 Melee Attacks 93 | . . . . . 2 2 20 23 29 17 Impact . | . . . . . . . . . . . Slashing 67 | . . . . . 2 2 20 23 18 2 Piercing 26 | . . . . . . . . . 11 15 Sneak Attacks 14 | . . . . . 2 1 2 2 3 4 Combat Hostiles . | . . . . . . . . . . . Follow-up Attacks 3 | . . . . . . . . . 3 . Damage Inflicted 2869 | 139 230 241 . . 277 57 595 476 512 342 Guns 610 | 139 230 241 . . . . . . . . Cannons . | . . . . . . . . . . . Explosions 312 | . . . . . 131 . 181 . . . Melee 1947 | . . . . . 146 57 414 476 512 342 Ramming . | . . . . . . . . . . . Kinetic . | . . . . . . . . . . . Thermal 610 | 139 230 241 . . . . . . . . Explosive 312 | . . . . . 131 . 181 . . . Electromagnetic . | . . . . . . . . . . . Impact . | . . . . . . . . . . . Slashing 1475 | . . . . . 146 57 414 476 340 42 Piercing 472 | . . . . . . . . . 172 300 Highest Corruption 4 | . . . . . . . 2 . 4 . Average Corruption 2 | . . . . . . . 1 . 3 . Corruption Purged . | . . . . . . . . . . . Corruption Blocked . | . . . . . . . . . . . Effects 3 | . . . . . . . 1 . 2 . Message Errors 1 | . . . . . . . 1 . . . Matter Fused 1 | . . . . . . . . . 1 . Parts Rejected 1 | . . . . . . . . . 1 . Overload Shots . | . . . . . . . . . . . Overflow Damage 277 | . . . . . 66 17 23 30 . 141 Projectiles . | . . . . . . . . . . . Explosions 23 | . . . . . . . 23 . . . Melee 254 | . . . . . 66 17 . 30 . 141 Knockbacks . | . . . . . . . . . . . Impact . | . . . . . . . . . . . Kinetic . | . . . . . . . . . . . Secondary . | . . . . . . . . . . . Self-Inflicted Damage . | . . . . . . . . . . . Shots . | . . . . . . . . . . . Rammed . | . . . . . . . . . . . Targets Rammed . | . . . . . . . . . . . Kicked . | . . . . . . . . . . . Crushed . | . . . . . . . . . . . Highest Temperature 228 | 72 228 147 . . . . . 6 . 5 Average Temperature 72 | 37 92 69 . . . . . 6 . 5 Received Heat Transfer 858 | . 78 105 . . . 9 63 192 162 249 Siege Activations . | . . . . . . . . . . . Martial Activations . | . . . . . . . . . . . Shielding Activations . | . . . . . . . . . . . Robots Disrupted . | . . . . . . . . . . . Combat Hostiles . | . . . . . . . . . . . Robots Corrupted . | . . . . . . . . . . . Combat Hostiles . | . . . . . . . . . . . Parts Fried . | . . . . . . . . . . . Impact Corruptions . | . . . . . . . . . . . Robots Melted . | . . . . . . . . . . . Combat Hostiles . | . . . . . . . . . . . Parts Melted 4 | 1 1 2 . . . . . . . . Heat Transferred 1400 | 325 525 550 . . . . . . . . Parts Sabotaged . | . . . . . . . . . . . Parts Stolen . | . . . . . . . . . . . Parts Stripped . | . . . . . . . . . . . Power Chain Reactions . | . . . . . . . . . . . Alert | -11 -10 -9 -9 -9 -8 -8 -7 -6 -5 -4 ------- Run | Yrd Mat Mat Min Exi Min Mat Fac Fac Fac Fac Maximum Alert Level . | . . . . . . . . . . . Low Security (%) 100 | 100 100 100 100 . 100 100 100 100 100 100 Level 1 . | . . . . . . . . . . . Level 2 . | . . . . . . . . . . . Level 3 . | . . . . . . . . . . . Level 4 . | . . . . . . . . . . . Level 5 . | . . . . . . . . . . . High Security . | . . . . . . . . . . . Max Security . | . . . . . . . . . . . Peak Influence 182 | 20 35 50 3 . 121 15 85 55 182 15 Initial 16 | . 6 14 3 . . 13 6 10 16 . Average 31 | 6 6 22 1 . 66 2 21 5 88 1 Influence Increases 1096 | 30 65 95 . . 136 29 245 88 362 46 Destroy 0b10 Robot/C 400 | . 40 60 . . 80 . 140 40 40 . Destroy 0b10 Robot/NC 90 | 30 . . . . 5 5 10 5 20 15 Destroy Leader 102 | . 10 20 . . 10 . 30 20 12 . Successful Hack 8 | . . . . . . 8 . . . . Disable Machine 30 | . . . . . 30 . . . . . Destroy Structure 76 | . . . . . 11 1 20 8 20 16 Partial Spotted 15 | . . 15 . . . . . . . . Lose Combat Pursuer 375 | . 15 . . . . 15 45 15 270 15 Influence Decreases 1096 | 20 40 120 10 . 100 50 238 75 397 46 Entered New Map 95 | . 4 21 7 . . 23 9 12 19 . Time Decay 790 | 20 26 80 3 . 100 27 220 53 222 39 Lost Part 211 | . 10 19 . . . . 9 10 156 7 Squads Dispatched 18 | . 2 2 1 . . . 3 3 5 2 Investigation 1 | . . . . . . . . 1 . . Extermination 5 | . . . . . . . 1 1 2 1 Reinforcement 9 | . 2 2 . . . . 2 1 2 . Assault 1 | . . . 1 . . . . . . . Garrison 2 | . . . . . . . . . 1 1 Intercept . | . . . . . . . . . . . Searches Triggered . | . . . . . . . . . . . Construction Impeded 1 | . . . . . . . . 1 . . Haulers Reinforced . | . . . . . . . . . . . Active Scanning Responses . | . . . . . . . . . . . Cargo Convoy Interrupts . | . . . . . . . . . . . Stealth | -11 -10 -9 -9 -9 -8 -8 -7 -6 -5 -4 --------- Run | Yrd Mat Mat Min Exi Min Mat Fac Fac Fac Fac Distress Signals 5 | . . 2 . . . 2 . . 1 . Communications Jammed . | . . . . . . . . . . . Distress Signals . | . . . . . . . . . . . Times Spotted 99 | . 9 13 4 . 4 7 13 6 35 8 Peak Tracking Total 10 | . 5 7 5 . 4 9 3 3 10 6 Tactical Retreats 14 | . 1 . . . . 1 2 1 8 1 Traps | -11 -10 -9 -9 -9 -8 -8 -7 -6 -5 -4 ------- Run | Yrd Mat Mat Min Exi Min Mat Fac Fac Fac Fac Traps Triggered 1 | . . . . . . . . 1 . . Indirectly . | . . . . . . . . . . . Trap Hack Attempts . | . . . . . . . . . . . Triggered . | . . . . . . . . . . . Disarmed . | . . . . . . . . . . . Reprogrammed . | . . . . . . . . . . . Reused . | . . . . . . . . . . . Traps Extracted . | . . . . . . . . . . . Installed . | . . . . . . . . . . . Triggered . | . . . . . . . . . . . Machines | -11 -10 -9 -9 -9 -8 -8 -7 -6 -5 -4 ---------- Run | Yrd Mat Mat Min Exi Min Mat Fac Fac Fac Fac Machines Disabled 2 | . . . . . 2 . . . . . Max in Single Turn 2 | . . . . . 2 . . . . . Machines Repaired . | . . . . . . . . . . . Machines Dismantled . | . . . . . . . . . . . Machines Sabotaged . | . . . . . . . . . . . Overloaded Fab Kills . | . . . . . . . . . . . Hacking | -11 -10 -9 -9 -9 -8 -8 -7 -6 -5 -4 --------- Run | Yrd Mat Mat Min Exi Min Mat Fac Fac Fac Fac Machines Accessed 11 | . 2 . . . . 2 2 1 1 3 Terminals 11 | . 2 . . . . 2 2 1 1 3 Fabricators . | . . . . . . . . . . . Repair Stations . | . . . . . . . . . . . Recycling Units . | . . . . . . . . . . . Scanalyzers . | . . . . . . . . . . . Garrison Access . | . . . . . . . . . . . Total Hacks 13 | . 2 . . . . 2 4 1 1 3 Successful 2 | . . . . . . 1 1 . . . Failed 11 | . 2 . . . . 1 3 1 1 3 Catastrophic 6 | . 2 . . . . 1 1 . 1 1 Database Lockouts . | . . . . . . . . . . . Manual 12 | . 2 . . . . 2 3 1 1 3 Terminals 13 | . 2 . . . . 2 4 1 1 3 Fabricators . | . . . . . . . . . . . Repair Stations . | . . . . . . . . . . . Recycling Units . | . . . . . . . . . . . Scanalyzers . | . . . . . . . . . . . Garrison Access . | . . . . . . . . . . . Terminal Hacks 2 | . . . . . . 1 1 . . . Open DSF 1 | . . . . . . . 1 . . . Level Access Points 1 | . . . . . . 1 . . . . Fabricator Hacks . | . . . . . . . . . . . Repair Station Hacks . | . . . . . . . . . . . Recycling Unit Hacks . | . . . . . . . . . . . Scanalyzer . | . . . . . . . . . . . Garrison Access Hacks . | . . . . . . . . . . . Unauthorized Hacks . | . . . . . . . . . . . Terminals . | . . . . . . . . . . . Fabricators . | . . . . . . . . . . . Repair Stations . | . . . . . . . . . . . Recycling Units . | . . . . . . . . . . . Scanalyzers . | . . . . . . . . . . . Garrison Access . | . . . . . . . . . . . Data Cores Recovered . | . . . . . . . . . . . Used . | . . . . . . . . . . . Hacking Detections 8 | . 2 . . . . 1 1 1 1 2 Full Trace Events . | . . . . . . . . . . . Feedback Events . | . . . . . . . . . . . Feedback Blocked . | . . . . . . . . . . . Robot Schematics Acquired . | . . . . . . . . . . . Robots Built . | . . . . . . . . . . . Authchips . | . . . . . . . . . . . Time . | . . . . . . . . . . . Total Robot Build Rating . | . . . . . . . . . . . Part Schematics Acquired . | . . . . . . . . . . . Parts Built . | . . . . . . . . . . . Authchips . | . . . . . . . . . . . Time . | . . . . . . . . . . . Total Part Build Rating . | . . . . . . . . . . . Parts Repaired . | . . . . . . . . . . . Time . | . . . . . . . . . . . Parts Recycled . | . . . . . . . . . . . Recycled Matter . | . . . . . . . . . . . Retrieved Matter . | . . . . . . . . . . . Retrieved Components . | . . . . . . . . . . . Parts Scanalyzed . | . . . . . . . . . . . Part Schematics Acquired . | . . . . . . . . . . . Parts Damaged . | . . . . . . . . . . . Bothacking | -11 -10 -9 -9 -9 -8 -8 -7 -6 -5 -4 ------------ Run | Yrd Mat Mat Min Exi Min Mat Fac Fac Fac Fac Used RIF Installer . | . . . . . . . . . . . Robots Hacked . | . . . . . . . . . . . Non-combat . | . . . . . . . . . . . Combat . | . . . . . . . . . . . Robot Hacks Applied . | . . . . . . . . . . . Relay Couplers Released 4 | . . . . . . . . . 4 . Programmers 4 | . . . . . . . . . 4 . Fabnet Peak Effective % . | . . . . . . . . . . . Robots Rewired . | . . . . . . . . . . . Allies Hacked . | . . . . . . . . . . . Hacks Repelled . | . . . . . . . . . . . Allies | -11 -10 -9 -9 -9 -8 -8 -7 -6 -5 -4 -------- Run | Yrd Mat Mat Min Exi Min Mat Fac Fac Fac Fac Total Allies 1 | . . . 1 . . . . . . . Largest Group 1 | . . . 1 . . . . . . . Highest-Rated Group 31 | . . . 31 . . . . . . . Highest-Rated Ally 31 | . . . 31 . . . . . . . Total Orders . | . . . . . . . . . . . Ally Attacks 6 | . . . 6 . . . . . . . Total Damage 85 | . . . 85 . . . . . . . Kills . | . . . . . . . . . . . Allies Corrupted . | . . . . . . . . . . . Allies Melted . | . . . . . . . . . . . Intel | -11 -10 -9 -9 -9 -8 -8 -7 -6 -5 -4 ------- Run | Yrd Mat Mat Min Exi Min Mat Fac Fac Fac Fac Active Infowar (turns) 2145 | 16 193 46 . . . 164 624 367 514 221 IFF 221 | . . . . . . . . . . 221 Terrain 1908 | 16 193 46 . . . 164 624 367 498 . Traps 513 | . . . . . . . . . 513 . ECM 8 | . . . . . . . . 8 . . Robot Analysis Total . | . . . . . . . . . . . Derelict Logs Recovered . | . . . . . . . . . . . Drone Launches . | . . . . . . . . . . . Drone Recoveries . | . . . . . . . . . . . Exploration | -11 -10 -9 -9 -9 -8 -8 -7 -6 -5 -4 ------------- Run | Yrd Mat Mat Min Exi Min Mat Fac Fac Fac Fac Turns Passed 3004 | 91 193 165 51 244 234 164 624 369 565 304 Spaces Moved 2874 | 51 146 127 47 305 269 180 605 358 554 232 Core 23 | 3 . . . . . . . . . 20 Treads . | . . . . . . . . . . . Legs . | . . . . . . . . . . . Wheels 2787 | 48 146 127 47 305 269 180 605 358 490 212 Hover 64 | . . . . . . . . . 64 . Flight . | . . . . . . . . . . . Fastest Speed 50 | 50 90 80 80 80 80 80 80 80 55 80 Average Speed 86 | 87 90 84 80 80 80 80 92 84 84 103 Slowest Speed 350 | 90 100 85 80 80 80 80 95 101 180 350 Overloaded Moves . | . . . . . . . . . . . Propulsion Burnouts . | . . . . . . . . . . . Robots Hopped . | . . . . . . . . . . . Potential Cave-ins . | . . . . . . . . . . . Cave-ins Triggered . | . . . . . . . . . . . Exploration Rate (%) 28 | 4 29 20 8 77 74 26 20 15 25 10 Regions Visited 10 Branch Regions 3 Pre-discovered Areas . | . . . . . . . . . . . Known Exits Taken 2 | . . . . . . 1 . . 1 . Unknown Exits Taken 8 | 1 1 1 1 1 1 . 1 1 . . Scrap Searched 1 | . . . . . 1 . . . . . Spaces Dug 32 | . . . . . . 1 5 8 10 8 Terrain Destroyed 63 | . . . . . 12 1 24 8 10 8 Melee 32 | . . . . . . 1 5 8 10 8 Projectile . | . . . . . . . . . . . AOE 31 | . . . . . 12 . 19 . . . Terrain Rammed . | . . . . . . . . . . . Walls Destroyed . | . . . . . . . . . . . Machines Disabled . | . . . . . . . . . . . Actions | -11 -10 -9 -9 -9 -8 -8 -7 -6 -5 -4 --------- Run | Yrd Mat Mat Min Exi Min Mat Fac Fac Fac Fac Total 3138 | 73 168 149 60 304 281 198 646 396 605 258 Wait 16 | . . . 14 . . . . 2 . . Move 2864 | 50 145 126 46 304 268 179 604 357 553 232 Hop . | . . . . . . . . . . . Pick Up 31 | 6 3 . . . 2 3 5 4 7 1 Fast Attach 28 | 7 . 1 . . . 5 3 1 6 5 Attach 28 | . . 4 . . . 1 4 3 13 3 Detach 7 | . . . . . 1 4 1 . 1 . Swap 10 | . . 1 . . 4 . 3 2 . . Drop 15 | . 1 . . . 1 4 5 4 . . Fire 50 | 10 19 17 . . 3 . 1 . . . Melee 89 | . . . . . 2 2 20 23 25 17 Ram . | . . . . . . . . . . . Kick . | . . . . . . . . . . . Crush . | . . . . . . . . . . . Escape Stasis . | . . . . . . . . . . . Rewire . | . . . . . . . . . . . Trap . | . . . . . . . . . . . Miscellaneous . | . . . . . . . . . . . Route ------- -11/Scrapyard -10/Materials -9/Materials -9/Mines -9/Exiles -8/Mines -8/Materials (discovered 3 exits: *Fac x3) -7/Factory -6/Factory -5/Factory -4/Factory History --------- Turn | Location | Event 12 | -11/Scrapyard | Discovered new exit (range 16) 92 | -11/Scrapyard | Entered Materials 253 | -10/Materials | Discovered new exit (range 4) 285 | -10/Materials | Entered another Materials area 285 | -9/Materials | Evolved 2 slots: Propulsion x2 308 | -9/Materials | Build established: Mutant 406 | -9/Materials | Discovered new exit (range 14) 450 | -9/Materials | Entered Mines 451 | -9/Mines | Met a Derelict testing a Signal Generator 475 | -9/Mines | Deemed a non-threat by the Exiles lab entrance 475 | -9/Mines | Discovered new exit (range 5) 476 | -9/Mines | Met a Derelict bent on vengeance 501 | -9/Mines | Entered Exiles 524 | -9/Exiles | Met 8R-AWN 540 | -9/Exiles | Met EX-HEX 570 | -9/Exiles | Met EX-DEC 594 | -9/Exiles | Visited The Gauntlet 734 | -9/Exiles | Discovered new exit (range 14) 745 | -9/Exiles | Entered Mines 754 | -8/Mines | Build established: Scavenger-Mutant 767 | -8/Mines | Found a Scrap Suit stashed away for nefarious purposes 969 | -8/Mines | Discovered new exit (range 14) 979 | -8/Mines | Entered Materials 979 | -8/Materials | Evolved 2 slots: Utility x2 1025 | -8/Materials | Found Prototype Launcher 1025 | -8/Materials | Identified Rocket Array 1101 | -8/Materials | Identified exit to Factory 1143 | -8/Materials | Entered Factory 1143 | -7/Factory | Evolved 2 slots: Utility x2 1751 | -7/Factory | Discovered new exit (range 15) 1767 | -7/Factory | Entered another Factory area 1767 | -6/Factory | Evolved 2 slots: Utility x2 2062 | -6/Factory | Discovered new exit (range 18) 2126 | -6/Factory | Lost 5 parts (2n2u1w) 2136 | -6/Factory | Entered another Factory area 2136 | -5/Factory | Evolved 2 slots: Utility x2 2403 | -5/Factory | Build established: Scavenger-Assassin 2487 | -5/Factory | Lost 3 parts (1p1n1u) 2546 | -5/Factory | Garrison activated, responded to threat 2678 | -5/Factory | Discovered new exit (range 13) 2684 | -5/Factory | Lost 10 parts (1p6n3u) 2700 | -5/Factory | Identified exit to Factory 2701 | -5/Factory | Entered another Factory area 2701 | -4/Factory | Evolved 2 slots: Propulsion x1, Utility x1 2729 | -4/Factory | Lost 4 parts (1p2n1w) 2845 | -4/Factory | Garrison activated, responded to threat 2942 | -4/Factory | Lost 5 parts (5n) 2996 | -4/Factory | Core integrity fell below 50% 3001 | -4/Factory | Core integrity fell below 20% 3003 | -4/Factory | Found Prototype Hackware 3003 | -4/Factory | Identified Exp. System Shield 3005 | -4/Factory | Destroyed by Y-64 Sentinel with Wave Gun Last Messages --------------- 02992_ Hvy. Pick destroyed. 02996_ Slug penetrates Fusion Modulator. 02996_ Penetrated by Slug. 02996_ Slug penetrates Fusion Modulator. 02996_ Imp. Weapon Shielding destroyed. 02999_ Slug penetrates Fusion Modulator. 02999_ Penetrated by Slug. 03000_ Fusion Modulator explodes. 03000_ G-67 Veteran destroyed. 03000_ Adv. Terrain Scan Processor destroyed. 03000_ H-77 Assassin destroyed. 03000_ A-15 Conveyor destroyed. 03000_ H-77 Assassin destroyed. 03001_ Slug penetrates Y-64 Sentinel. 03001_ Y-64 Sentinel suffers critical hit (Destroy). 03001_ Melee Analysis Suite destroyed. 03002_ Penetrated by Slug. 03003_ Acquired Prototype Hackware. 03003_ Identified Exp. System Shield. Map ----- +----------------------------------------------------+ | ??? #????????????? | | #?# #????# = ##???????????? | | ####+#####?# ????????????? | | ?# !!! # #?# #???? #??????? | | ?# !!! " #?# ????? #??????? | | ?# !! # #??# ######/#######? | | ?# # #??# # """ # | | ## # ! #??# + = [ T" # | | # #### # # | | ##+#### # + # # | | ?# # ! #####p## # | | ## # #???# ## # | | ## #####+####??## ## # | | ## #???????#####; ## # | | """ ## ???????? ;; # | | """ ## ##???????##;;; ; ;########### | | """ ## #????????#;;; % ;#???????? | | ########+##????????+ ###?????? | | ???????????????????# #?????? | | ###????????????????# Y #?????? | | #????????????????# Y = #?????? | | #????????????????# g #?????? | | " #????????????????# #?????? | | ???????????????????# ; #?????? | | ???????????????????# = ; #?????? | | ??##?#####?#???????# @ ! ; #?????? | | # ? #??????# ! ; #?????? | | " # "" "" #??????# ###?????? | | ??# "" "" #??????# R #???????? | | ??# """ """ #??????#######/#######??????? | | ??# """ """ #?????????# ??????? | | ??# """ """ #?????????# ???????? | | ??# #?????????# ???????? | | ??# ] #?????????# ???????? | | ######+################ ??????? | | ^ #?????????? | | ! #?????????? | | """""" """""" """""" #????????## | | ^"""""" """""" """""" #???????? # | | """""" """""" """""" #??????? # | | """""" """""" """""" #??????? # | | ####??? # | | = #??? # | | #?? # | | #### ########T## #?? # | | #??# #??????######### #? # | | #???+#??????# ## #? # | | #???????????#"" ## # # | | #???????????#"" ## # # | | +???????????#"T ## + # | +----------------------------------------------------+ Best States ------------- Heat Dissipation 55 Energy Generation 15 Energy Capacity 250 Matter Stores 300 Matter Capacity 300 Sight Range 16 Terrain Scan Range 20 Terrain Scan Density 210 ECM Strength 2 Armor Coverage 375 Weapon Shielding 66 Melee Speed Boost 20 Evasion (%) 54 Melee Accuracy 5 Offensive Hacking 10 Item Schematics ----------------- None Robot Schematics ------------------ None Fabricated ------------ Nothing Repaired ---------- Nothing Alien Tech Used ----------------- None Achievements -------------- None Challenges ------------ None Game ------ Seed DeliveryTransmissionCasing Manual? 0 Play Time 00:42:57 Cumulative 456.1 hours Start 2025.05.13 @ 15:09:35 End 2025.05.13 @ 15:53:12 Sessions 1 Manual Loads 0 Difficulty Rogue Special Mode None Game No. 180 Rogue 180 Adventurer 0 Explorer 0 Win Type - Total 0 Types 0/0/0/0/0/0/0/0/0/0 Lore% 17 Gallery% 43 Achievement% 30 Wizard Run 0 Options --------- Layout 1 ASCII 0 Keyboard 1 Movement Numpad Keybinds 0 Fullscreen 1 Font 24/Smallcaps Map View 50x35 Zoom Use 0% Tactical HUD 1 Map Filters NONE Filters NONE Steam 1 RUN: fb8aeac0-d299-4368-bb17-a371376e9e52